bitfinex/quotes_SOLUSD_20250518
["timestamp","ask_amount","ask_price","bid_price","bid_amount"]
[1747565290516,5.84452541,171.11,171.04,1.5995]
[1747565291438,5.84385226,171.12,171.04,1.5995]
[1747565291812,18.64964886,171.11,171.03,2.23418832]
[1747565292843,5.84453535,171.1,171.03,2.23418832]
[1747565293334,5.84453535,171.1,171.03,8.08105615]
[1747565295537,5.84453535,171.1,171.03,2.23418832]
[1747565301743,18.64964886,171.07,171.03,2.23418832]
[1747565303550,102.20846648,171.07,171.03,2.23418832]
[1747565303848,18.64964886,171.05,171.03,2.23418832]
[1747565305146,24.49623445,171.04,171.03,2.23418832]
[1747565325669,5.84637374,171.05,171.03,2.23418832]
[1747565328004,18.64964886,171.04,171.03,2.23418832]
[1747565328870,5.84658559,171.04,171.03,2.23418832]
[1747565330701,5.84624378,171.05,171.03,2.23418832]
[1747565340210,5.84658559,171.04,171.03,2.23418832]
[1747565340388,18.64964886,171.03,170.96,1.5978]
[1747565342209,18.64964886,171.01,170.96,1.5978]
[1747565343722,5.84795321,171.0,170.96,1.5978]
[1747565344923,18.64964886,171.01,170.96,1.5978]
[1747565347103,18.64964886,170.99,170.96,1.5978]
[1747565349824,5.84833102,170.99,170.96,1.5978]
[1747565352620,18.64964886,170.99,170.96,1.5978]
[1747565353200,18.64964886,170.99,170.95,18.24]
[1747565354006,18.64964886,170.99,170.94,6.3251]
[1747565354215,18.64964886,170.99,170.92,1.6447]
[1747565354605,5.84863726,170.98,170.92,1.6447]
[1747565355232,18.64964886,170.97,170.92,1.6447]
[1747565356337,5.84932147,170.96,170.92,1.6447]
[1747565357403,5.84905481,170.97,170.92,1.6447]
[1747565358437,5.84863726,170.98,170.92,1.6447]
[1747565366153,5.84863726,170.98,170.92,7.49537852]
[1747565366354,18.64964886,170.97,170.92,1.6447]
[1747565368152,5.84922337,170.97,170.92,1.6447]
[1747565370364,18.64964886,170.99,170.92,1.6447]
[1747565371876,18.64964886,170.99,170.92,7.49527902]
[1747565372165,18.64964886,171.0,170.92,7.49527902]
[1747565372384,18.64964886,170.98,170.92,7.49527902]
[1747565373760,5.84892244,170.98,170.92,7.49527902]
[1747565375064,5.84795321,171.0,170.92,7.49527902]
[1747565377273,5.84795321,171.0,170.92,1.6447]
[1747565378253,18.64964886,170.99,170.92,1.6447]
[1747565378454,18.64964886,170.99,170.9,24.6484]
[1747565379765,18.64964886,170.97,170.9,24.6484]
[1747565381071,18.64964886,170.95,170.9,24.6484]
[1747565381973,5.84932147,170.96,170.9,30.49973166]
[1747565386976,5.84932147,170.96,170.9,24.6484]
[1747565388774,5.84932147,170.96,170.9,12.25972327]
[1747565395476,18.64964886,170.95,170.88,33.36136823]
[1747565396564,5.85000585,170.94,170.88,33.36136823]
[1747565397459,18.64964886,170.95,170.88,33.36136823]
[1747565398680,5.84983299,170.95,170.88,33.36136823]
[1747565399984,18.64964886,170.95,170.88,33.36136823]
[1747565402463,5.84967226,170.95,170.88,33.36136823]
[1747565403355,18.64964886,170.95,170.88,33.36136823]
[1747565405096,5.84983522,170.95,170.88,33.36136823]
[1747565406289,18.64964886,170.97,170.88,33.36136823]
[1747565407576,18.64964886,170.98,170.88,47.99151804]
[1747565407965,18.64964886,170.98,170.89,18.22]
[1747565408387,5.84886702,170.98,170.9,5.85137507]
[1747565410800,24.49804778,170.99,170.9,5.85137507]
[1747565411003,24.49804778,170.99,170.91,6.0941]
[1747565411900,24.49804778,170.99,170.92,5.85069038]
[1747565414305,24.49804778,170.99,170.93,1.5875]
[1747565415700,18.64964886,170.99,170.93,7.43779621]
[1747565416604,24.4979922,170.99,170.93,7.43779621]
[1747565422406,18.64964886,170.99,170.93,7.43779621]
[1747565423313,83.55881762,171.0,170.93,7.43779621]
[1747565423707,89.4068403,171.0,170.93,7.43779621]
[1747565423927,18.64964886,170.99,170.93,7.43779621]
[1747565424717,18.64964886,170.99,170.93,1.5875]
[1747565424932,18.64964886,170.99,170.92,5.85061744]
[1747565424933,18.64964886,170.99,170.91,37.94506597]
[1747565425256,18.64964886,170.99,170.89,7.38031264]
[1747565425462,18.64964886,170.97,170.89,7.38031264]
[1747565426355,18.64964886,170.95,170.89,7.38031264]
[1747565427835,18.64964886,170.95,170.89,1.5287]
[1747565428644,5.85000585,170.94,170.89,1.5287]
[1747565429448,18.64964886,170.93,170.87,6.3573]
[1747565429847,18.64964886,170.93,170.87,12.20963387]
[1747565431156,24.5000497,170.93,170.87,12.20963387]
[1747565431459,5.85040084,170.93,170.87,12.20963387]
[1747565432375,18.64964886,170.93,170.87,12.20963387]
[1747565433853,5.85044879,170.93,170.87,12.20963387]
[1747565434054,5.85044879,170.93,170.87,6.3573]
[1747565434490,5.85044879,170.93,170.87,12.20968841]
[1747565436392,18.64964886,170.93,170.87,12.20968841]
[1747565438191,5.85046948,170.93,170.87,12.20968841]
[1747565439385,18.64964886,170.93,170.87,12.20968841]
[1747565441191,5.85000585,170.94,170.87,12.20968841]
[1747565443705,5.85069038,170.92,170.86,5.85264571]
[1747565445189,5.85034809,170.93,170.86,5.85264571]
[1747565446392,5.85000585,170.94,170.86,5.85264571]
[1747565449618,24.49938648,170.95,170.86,5.85264571]
[1747565450214,83.55881762,170.96,170.88,26.0]
[1747565452308,89.40817395,170.96,170.89,5.85171747]
[1747565453213,5.84935633,170.96,170.89,5.85171747]
[1747565453609,24.49873435,170.97,170.89,5.85171747]
[1747565456820,24.49873435,170.97,170.9,1.5327]
[1747565457301,24.06874395,170.98,170.9,1.5327]
[1747565457500,5.84874395,170.98,170.9,1.5327]
[1747565458805,5.84874395,170.98,170.91,5.8510327]
[1747565461312,18.64964886,170.97,170.9,7.38401043]
[1747565462208,5.84932147,170.96,170.9,7.38401043]
[1747565462511,5.84909425,170.97,170.9,7.38401043]
[1747565466016,5.84870483,170.98,170.9,7.38401043]
[1747565466187,5.84870483,170.98,170.91,26.0]
[1747565467097,5.84829522,170.99,170.92,31.85069038]
[1747565477807,24.49771609,171.0,170.92,31.85069038]
[1747565479011,24.49771609,171.0,170.92,38.00059038]
[1747565482533,89.40646045,171.01,170.92,52.62731633]
[1747565482716,83.55881762,171.01,170.92,52.62731633]
[1747565484131,24.4971588,171.02,170.92,52.62731633]
[1747565485839,24.4971588,171.02,170.94,5.85000585]
[1747565493050,20.46257475,171.05,170.95,26.0]
[1747565493241,18.64964886,171.04,170.95,26.0]
[1747565494137,5.84692743,171.03,170.96,31.84932147]
[1747565502251,5.84692743,171.03,170.96,7.41062147]
[1747565506844,24.49634635,171.04,170.96,7.41062147]
[1747565514574,24.49634635,171.04,170.96,25.59062147]
[1747565522257,5.84669749,171.04,170.96,43.77062147]
[1747565522463,5.84628688,171.05,170.97,6.2182]
[1747565522855,102.20846648,171.06,170.97,6.2182]
[1747565523273,5.84568962,171.07,170.98,26.0]
[1747565523480,18.64964886,171.07,170.98,26.0]
[1747565524268,24.4953083,171.07,170.99,5.84829522]
[1747565536888,18.64964886,171.07,170.99,5.84829522]
[1747565537194,18.64964886,171.07,170.99,20.46903327]
[1747565538468,5.84563208,171.07,170.99,20.46903327]
[1747565544798,5.84563208,171.07,171.01,5.84761125]
[1747565548687,5.84563208,171.07,171.0,24.02788816]
[1747565554391,5.84563208,171.07,171.0,26.0]
[1747565555507,5.84563208,171.07,171.0,31.84769986]
[1747565556494,5.84624378,171.05,171.0,26.0]
[1747565556708,18.64964886,171.04,170.96,1.5613]
[1747565557803,18.64964886,171.04,170.96,7.41061716]
[1747565558619,18.64964886,171.02,170.96,1.5613]
[1747565559205,18.64964886,171.02,170.96,7.41059829]
[1747565560419,5.84740513,171.02,170.96,7.41059829]
[1747565561715,24.49623445,171.04,170.96,7.41059829]
[1747565563414,24.49623445,171.04,170.96,1.5613]
[1747565563725,39.11269843,171.04,170.94,50.00991416]
[1747565564227,57.29269843,171.04,170.94,50.00991416]
[1747565568716,39.11269843,171.04,170.94,50.00991416]
[1747565570791,24.49623445,171.04,170.94,50.00991416]
[1747565571905,24.49623445,171.04,170.94,64.63492878]
[1747565573121,24.49623445,171.04,170.94,50.00991416]
[1747565573906,39.11269843,171.04,170.94,50.00991416]
[1747565580604,39.11269843,171.04,170.94,44.16]
[1747565581824,18.64964886,171.0,170.94,18.16]
[1747565582228,18.64964886,171.0,170.92,7.46891291]
[1747565582826,5.84829522,170.99,170.92,7.46891291]
[1747565583022,5.84829522,170.99,170.92,1.6183]
[1747565583325,18.64964886,170.98,170.92,1.6183]
[1747565584810,5.84897935,170.97,170.92,1.6183]
[1747565586828,18.64964886,171.01,170.92,7.46891366]
[1747565587935,24.49726011,171.01,170.92,7.46891366]
[1747565589149,24.49726011,171.01,170.92,25.62891366]
[1747565598840,24.49726011,171.01,170.93,6.557]
[1747565599220,24.49726011,171.01,170.93,24.717]
[1747565600139,24.49726011,171.01,170.94,5.85000585]
[1747565604141,5.84726932,171.02,170.94,5.85000585]
[1747565608253,5.84726932,171.02,170.96,5.84932147]
[1747565609145,108.05550823,171.03,170.96,5.84932147]
[1747565609347,18.64964886,171.05,170.97,1.5346]
[1747565609552,18.16,171.06,170.97,1.5346]
[1747565609727,5.84590202,171.06,170.97,1.5346]
[1747565610354,5.84590202,171.06,170.98,5.84863726]
[1747565626978,18.64964886,171.05,170.97,1.5346]
[1747565628674,5.84658559,171.04,170.97,1.5346]
[1747565630969,5.84658559,171.04,170.97,7.38356165]
[1747565631545,5.84658559,171.04,170.97,25.52356165]
[1747565637587,5.84658559,171.04,170.98,6.1393]
[1747565637767,5.84658559,171.04,170.98,11.9878596]
[1747565639491,5.84556029,171.07,170.98,11.9878596]
[1747565639691,18.64964886,171.06,170.98,11.9878596]
[1747565640492,5.84556029,171.07,170.98,11.9878596]
[1747565640791,27.84294513,171.08,170.99,26.0]
[1747565640979,27.84294513,171.08,171.0,1.5687]
[1747565641584,83.55881762,171.09,171.02,5.84726932]
[1747565641802,18.64964886,171.11,171.03,24.2793]
[1747565641803,24.49395967,171.11,171.03,24.2793]
[1747565643292,5.84351078,171.13,171.04,5.84658559]
[1747565643485,5.84351078,171.13,171.05,1.5687]
[1747565644374,5.84351078,171.13,171.06,5.84590202]
[1747565645294,14.60494825,171.18,171.06,5.84590202]
[1747565645593,18.64964886,171.15,171.06,5.84590202]
[1747565645800,40.60494825,171.18,171.06,5.84590202]
[1747565645801,18.64964886,171.17,171.06,5.84590202]
[1747565646801,24.49179409,171.17,171.06,20.46065707]
[1747565647796,31.8418494,171.18,171.07,26.0]
[1747565648099,31.8418494,171.18,171.08,24.53]
[1747565648271,31.8418494,171.18,171.09,18.12]
[1747565648673,31.8418494,171.18,171.1,1.6004]
[1747565648874,31.8418494,171.18,171.11,5.84419379]
[1747565649670,5.8418494,171.18,171.11,5.84419379]
[1747565650076,5.8414627,171.19,171.11,5.84419379]
[1747565650272,18.64964886,171.21,171.11,5.84419379]
[1747565650502,5.84113518,171.2,171.11,5.84419379]
[1747565651901,5.84113518,171.2,171.11,20.45467827]
[1747565655604,5.84113518,171.2,171.11,5.84419379]
[1747565657714,18.64964886,171.21,171.11,5.84419379]
[1747565657715,24.48974697,171.23,171.11,5.84419379]
[1747565657903,24.48974697,171.23,171.11,20.45467827]
[1747565658099,24.48974697,171.23,171.12,6.6446]
[1747565658624,24.48974697,171.23,171.13,26.0]
[1747565658917,24.48974697,171.23,171.14,19.6744]
[1747565659120,24.48974697,171.23,171.15,23.96282792]
[1747565659614,5.84009811,171.23,171.15,23.96282792]
[1747565662425,18.64964886,171.22,171.15,18.12]
[1747565662607,18.64964886,171.22,171.14,1.5544]
[1747565662928,39.08999225,171.23,171.14,1.5544]
[1747565663152,18.64964886,171.22,171.14,1.5544]
[1747565663531,18.64964886,171.22,171.13,18.12]
[1747565664225,18.64964886,171.22,171.13,23.96347583]
[1747565664796,109.55881762,171.24,171.13,23.96347583]
[1747565665002,18.64964886,171.23,171.13,23.96347583]
[1747565665833,24.48974697,171.23,171.13,23.96347583]
[1747565666708,5.84009811,171.23,171.14,1.5213]
[1747565667610,5.84009811,171.23,171.15,5.84282792]
[1747565668721,83.55881762,171.24,171.15,20.44989774]
[1747565669816,20.23874886,171.27,171.19,5.8414627]
[1747565670024,20.23874886,171.27,171.2,18.1]
[1747565670850,5.83907509,171.26,171.2,23.94101716]
[1747565671509,5.83907509,171.26,171.2,25.44751716]
[1747565671830,5.8388506,171.27,171.2,25.44751716]
[1747565672749,5.83839327,171.28,171.2,25.44751716]
[1747565673515,18.64964886,171.31,171.21,26.0]
[1747565674524,24.48712492,171.31,171.22,5.8404392]
[1747565674947,24.48712492,171.31,171.23,18.1]
[1747565675115,39.08055204,171.31,171.2,27.5065]
[1747565675323,39.08055204,171.31,171.22,18.1]
[1747565677450,122.63936966,171.31,171.2,45.6065]
[1747565677757,18.64964886,171.27,171.2,18.1]
[1747565678542,5.83907509,171.26,171.2,18.1]
[1747565678722,5.83907509,171.26,171.2,23.94108863]
[1747565680039,20.43341209,171.29,171.2,23.94108863]
[1747565680242,18.64964886,171.28,171.2,23.94108863]
[1747565680541,5.83805242,171.29,171.21,26.0]
[1747565681616,5.83805242,171.29,171.22,5.8404392]
[1747565682625,5.83775021,171.3,171.23,1.5319]
[1747565682828,5.83775021,171.3,171.23,7.941]
[1747565683733,5.83668942,171.33,171.24,5.83975706]
[1747565684036,5.83668942,171.33,171.24,23.95975706]
[1747565687123,5.83600817,171.35,171.24,64.55914972]
[1747565691461,5.83600817,171.35,171.24,46.43914972]
[1747565691633,5.83600817,171.35,171.26,5.83907509]
[1747565694865,5.83600817,171.35,171.27,18.1]
[1747565695736,5.83600817,171.35,171.28,1.5566]
[1747565696825,5.8356676,171.36,171.28,7.39477656]
[1747565697134,5.8356676,171.36,171.28,1.5566]
[1747565697938,5.8356676,171.36,171.28,7.394909]
[1747565698126,20.42389098,171.37,171.28,7.394909]
[1747565698959,18.64964886,171.36,171.28,1.5566]
[1747565699736,18.64964886,171.36,171.27,18.1]
[1747565699934,1.629,171.35,171.27,18.1]
[1747565700461,18.64964886,171.33,171.27,18.1]
[1747565701569,18.64964886,171.33,171.24,27.6626]
[1747565701852,18.64964886,171.33,171.24,18.1]
[1747565702158,5.85273358,171.32,171.24,18.1]
[1747565702538,18.64964886,171.3,171.24,18.1]
[1747565703262,18.64964886,171.3,171.21,5.8405278]
[1747565703468,18.64964886,171.3,171.21,18.1]
[1747565703758,24.50238244,171.3,171.21,18.1]
[1747565705054,18.64964886,171.28,171.21,18.1]
[1747565705347,18.64964886,171.28,171.21,23.94076019]
[1747565707362,5.83873416,171.27,171.21,18.1]
[1747565708436,5.83873416,171.27,171.21,23.94073649]
[1747565709457,5.83839327,171.28,171.21,23.94073649]
[1747565711357,5.83805242,171.29,171.21,23.94073649]
[1747565712066,5.83805242,171.29,171.21,18.1]
[1747565712248,18.64964886,171.28,171.21,18.1]
[1747565712855,18.64964886,171.28,171.2,25.60360029]
[1747565713368,5.83873416,171.27,171.2,25.60360029]
[1747565714974,24.48804213,171.28,171.2,25.60360029]
[1747565727654,5.83816629,171.29,171.2,40.20640402]
[1747565728676,5.83816629,171.29,171.2,25.60360029]
[1747565739756,18.64964886,171.3,171.21,26.0]
[1747565740888,24.48747593,171.3,171.22,5.8404392]
[1747565741257,24.48747593,171.3,171.23,18.1]
[1747565741867,24.48747593,171.3,171.24,5.83975706]
[1747565745486,24.48787681,171.29,171.23,18.1]
[1747565745991,24.48787681,171.29,171.22,18.1]
[1747565746374,39.08300787,171.29,171.22,18.1]
[1747565749575,44.93574145,171.29,171.22,18.1]
[1747565753105,44.93574145,171.29,171.2,7.50368357]
[1747565761115,44.93574145,171.29,171.2,1.6626]
[1747565762795,44.93574145,171.29,171.2,7.50369746]
[1747565763921,44.93574145,171.29,171.2,1.6626]
[1747565765212,44.93574145,171.29,171.2,7.50370889]
[1747565766825,39.08300787,171.29,171.2,7.50370889]
[1747565770222,24.48787681,171.29,171.2,7.50370889]
[1747565775131,130.00456421,171.32,171.2,7.50370889]
[1747565775333,18.64964886,171.3,171.2,22.10651262]
[1747565776431,5.83800061,171.3,171.2,22.10651262]
[1747565777428,5.83800061,171.3,171.22,5.8404392]
[1747565777730,31.83712922,171.32,171.22,20.4415372]
[1747565777904,31.83712922,171.32,171.22,38.5815372]
[1747565780838,5.83712922,171.32,171.22,38.5815372]
[1747565781309,5.83712922,171.32,171.24,5.83975706]
[1747565781512,5.83712922,171.32,171.25,18.1]
[1747565782636,18.64964886,171.33,171.25,18.1]
[1747565782637,5.83676939,171.33,171.25,18.1]
[1747565783440,5.83676939,171.33,171.26,5.83907509]
[1747565801867,5.83676939,171.33,171.25,23.93934635]
[1747565806074,18.64964886,171.32,171.25,18.1]
[1747565807171,5.83737084,171.31,171.25,18.1]
[1747565808569,18.64964886,171.3,171.23,8.1512]
[1747565808749,18.64964886,171.3,171.23,19.7093]
[1747565809068,18.64964886,171.3,171.21,18.12]
[1747565810873,20.43318348,171.29,171.21,18.12]
[1747565811074,18.64964886,171.28,171.21,18.12]
[1747565813080,20.43556956,171.27,171.21,18.12]
[1747565823874,44.64964886,171.26,171.21,18.12]
[1747565824182,44.64964886,171.26,171.16,18.1]
[1747565824574,18.64964886,171.24,171.16,18.1]
[1747565825090,18.64964886,171.22,171.16,18.1]
[1747565827063,18.64964886,171.2,171.16,18.1]
[1747565829391,5.8414627,171.19,171.16,18.1]
[1747565832591,18.64964886,171.18,171.1,24.1634508]
[1747565832795,5.84214523,171.17,171.11,18.1]
[1747565834797,24.4914528,171.18,171.11,18.1]
[1747565835468,39.09596267,171.18,171.11,18.1]
[1747565841905,39.09596267,171.18,171.1,24.1634508]
[1747565845107,39.09596267,171.18,171.08,153.06226385]
[1747565845496,39.09596267,171.18,171.08,165.3171]
[1747565850811,24.4914528,171.18,171.08,171.16223453]
[1747565851016,5.84180394,171.18,171.11,26.0]
[1747565851207,83.55881762,171.19,171.12,7.8451]
[1747565851521,18.12,171.23,171.12,7.8451]
[1747565851522,121.49735809,171.26,171.12,25.9651]
[1747565851730,5.84009811,171.23,171.12,25.9651]
[1747565852018,5.84009811,171.23,171.12,30.63035887]
[1747565852194,5.84009811,171.23,171.13,5.84351078]
[1747565852397,5.84009811,171.23,171.14,18.1]
[1747565853821,5.84009811,171.23,171.15,5.84282792]
[1747565870324,5.83983465,171.24,171.15,20.44989774]
[1747565870521,5.83983465,171.24,171.16,1.6068]
[1747565871423,5.83983465,171.24,171.17,5.84214523]
[1747565871618,40.10917848,171.26,171.17,20.44750831]
[1747565871816,15.62014656,171.26,171.18,6.2426]
[1747565872336,15.62014656,171.26,171.18,24.3426]
[1747565873336,15.62014656,171.26,171.19,5.8414627]
[1747565873536,15.62014656,171.26,171.2,18.1]
[1747565874223,21.4592554,171.26,171.2,18.1]
[1747565875234,21.4592554,171.26,171.21,5.84078032]
[1747565875617,15.62014656,171.26,171.21,5.84078032]
[1747565881755,15.62014656,171.26,171.21,7.41008032]
[1747565883137,15.62014656,171.26,171.21,22.01203114]
[1747565883433,83.55881762,171.3,171.21,22.01203114]
[1747565883634,31.83760901,171.31,171.21,22.01203114]
[1747565885841,18.64964886,171.3,171.21,7.41008032]
[1747565886856,5.83805242,171.29,171.21,7.41008032]
[1747565891878,5.83805242,171.29,171.21,25.49008032]
[1747565892367,18.64964886,171.28,171.21,19.6493]
[1747565893266,18.64964886,171.28,171.21,25.49005127]
[1747565894039,5.83873416,171.27,171.21,25.49005127]
[1747565896772,18.64964886,171.3,171.21,25.49005127]
[1747565896973,18.64964886,171.3,171.21,19.6493]
[1747565897174,18.64964886,171.3,171.21,25.49004536]
[1747565898467,18.64964886,171.28,171.21,25.49004536]
[1747565899474,5.83873416,171.27,171.21,25.49004536]
[1747565900871,5.83839327,171.28,171.21,25.49004536]
[1747565902577,5.83805242,171.29,171.21,25.49004536]
[1747565910576,5.83873416,171.27,171.21,25.49004536]
[1747565912374,5.83839327,171.28,171.21,25.49004536]
[1747565913378,5.83805242,171.29,171.21,25.49004536]
[1747565934591,5.83805242,171.29,171.23,5.84009811]
[1747565937486,5.83805242,171.29,171.22,18.08]
[1747565937670,5.83805242,171.29,171.22,23.92041086]
[1747565944199,5.83805242,171.29,171.22,5.84041086]
[1747565946704,5.83805242,171.29,171.21,25.48998327]
[1747565951790,18.64964886,171.28,171.21,25.48998327]
[1747565952816,24.48819527,171.28,171.21,25.48998327]
[1747565956902,5.83703011,171.32,171.21,25.48998327]
[1747565957118,18.64964886,171.31,171.21,25.48998327]
[1747565959121,18.64964886,171.31,171.21,40.09193409]
[1747565960696,18.64964886,171.32,171.21,40.09193409]
[1747565962821,18.64964886,171.32,171.24,26.0]
[1747565963012,18.64964886,171.33,171.27,1.5402]
[1747565963409,18.64964886,171.33,171.27,19.6002]
[1747565964621,18.64964886,171.33,171.28,20.43437645]
[1747565965012,18.64964886,171.37,171.28,20.43437645]
[1747565990151,24.48502998,171.37,171.28,20.43437645]
[1747565990650,18.64964886,171.37,171.28,20.43437645]
[1747565991627,18.64964886,171.38,171.28,20.43437645]
[1747565991946,24.48464123,171.38,171.28,20.43437645]
[1747565992632,24.48476467,171.38,171.28,20.43437645]
[1747565995059,24.48476467,171.38,171.28,5.83839327]
[1747565995456,24.48476467,171.38,171.29,18.06]
[1747565995835,39.07223111,171.38,171.29,18.06]
[1747565997059,39.07223111,171.38,171.29,23.89777959]
[1747565999255,39.07223111,171.38,171.29,18.06]
[1747566000839,18.64964886,171.36,171.25,18.06]
[1747566001154,18.64964886,171.36,171.25,44.06]
[1747566001361,18.64964886,171.34,171.26,5.83907509]
[1747566003459,24.48541876,171.36,171.27,1.643]
[1747566005165,24.48541876,171.36,171.28,5.83839327]
[1747566005857,24.48541876,171.36,171.28,23.89839327]
[1747566006846,18.64964886,171.36,171.28,18.06]
[1747566007160,18.64964886,171.36,171.28,24.1976]
[1747566009066,109.55881762,171.39,171.28,24.1976]
[1747566009243,18.64964886,171.38,171.28,50.1976]
[1747566022292,18.64964886,171.38,171.29,18.04]
[1747566024686,18.64964886,171.38,171.3,1.6357]
[1747566027286,18.64964886,171.38,171.3,19.6757]
[1747566037291,18.64964886,171.38,171.3,1.6357]
[1747566037894,44.64964886,171.38,171.3,1.6357]
[1747566047196,44.64964886,171.38,171.27,18.04]
[1747566049197,43.11008269,171.38,171.27,18.04]
[1747566049404,61.15008269,171.38,171.27,18.04]
[1747566051107,18.64964886,171.34,171.27,18.04]
[1747566055315,44.04,171.35,171.27,18.04]
[1747566056797,26.0,171.35,171.27,18.04]
[1747566058512,18.64964886,171.34,171.27,18.04]
[1747566063612,26.0,171.35,171.27,18.04]
[1747566068110,26.0,171.36,171.27,18.04]
[1747566069224,18.64964886,171.35,171.27,18.04]
[1747566073427,44.64964886,171.38,171.27,18.04]
[1747566074330,18.64964886,171.38,171.28,26.0]
[1747566076402,18.64964886,171.38,171.29,6.3657]
[1747566089642,18.64964886,171.38,171.3,1.5592]
[1747566092638,18.64964886,171.38,171.3,19.5792]
[1747566097415,18.64964886,171.38,171.3,1.5592]
[1747566099025,18.64964886,171.38,171.28,18.02]
[1747566116763,18.64964886,171.38,171.28,26.0]
[1747566134082,18.64964886,171.38,171.29,8.0572]
[1747566140588,5.85256581,171.44,171.33,27.5288]
[1747566140769,18.64964886,171.44,171.34,24.1138]
[1747566142695,44.34220546,171.46,171.34,24.1138]
[1747566142899,18.64964886,171.45,171.34,24.1138]
[1747566150278,18.64964886,171.45,171.37,26.0]
[1747566150481,18.34220546,171.46,171.39,26.0]
[1747566150783,18.64964886,171.47,171.39,26.0]
[1747566151596,44.64964886,171.47,171.38,1.6547]
[1747566156295,18.64964886,171.47,171.38,27.6547]
[1747566163493,18.64964886,171.47,171.39,6.4607]
[1747566165307,83.55881762,171.48,171.39,32.4607]
[1747566166589,18.64964886,171.5,171.39,32.4607]
[1747566173312,18.64964886,171.5,171.42,26.0]
[1747566174814,18.06,171.51,171.42,26.0]
[1747566175009,18.64964886,171.52,171.43,18.18]
[1747566178627,18.64964886,171.52,171.43,19.7633]
[1747566182109,18.64964886,171.52,171.43,1.5833]
[1747566183007,18.64964886,171.52,171.42,18.18]
[1747566183722,18.64964886,171.52,171.4,26.0]
[1747566184018,18.64964886,171.52,171.4,44.18]
[1747566198823,18.64964886,171.52,171.42,26.0]
[1747566199759,18.64964886,171.52,171.4,26.0]
[1747566199942,18.64964886,171.48,171.42,18.08]
[1747566200452,18.64964886,171.48,171.39,7.9933]
[1747566200453,18.64964886,171.48,171.39,26.0733]
[1747566208557,18.64964886,171.48,171.39,44.1333]
[1747566213447,16.31701486,171.48,171.39,44.1333]
[1747566214568,26.0,171.49,171.39,44.1333]
[1747566214937,83.55881762,171.52,171.39,44.1333]
[1747566215138,26.0,171.49,171.39,44.1333]
[1747566217556,26.0,171.49,171.4,36.18]
[1747566218361,18.64964886,171.51,171.4,36.18]
[1747566218542,44.64964886,171.51,171.4,36.18]
[1747566220358,18.64964886,171.51,171.41,26.0]
[1747566221144,83.55881762,171.52,171.41,26.0]
[1747566221353,83.55881762,171.52,171.42,1.6104]
[1747566228372,18.64964886,171.54,171.44,6.1384]
[1747566229073,292.0,171.55,171.44,6.1384]
[1747566229248,18.64964886,171.54,171.44,6.1384]
[1747566229447,18.64964886,171.54,171.45,36.48]
[1747566236577,292.0,171.55,171.45,36.48]
[1747566237874,18.64964886,171.54,171.46,36.52]
[1747566239687,18.64964886,171.54,171.44,6.1384]
[1747566239876,18.64964886,171.54,171.45,36.5]
[1747566243386,292.0,171.55,171.45,36.5]
[1747566250582,266.0,171.55,171.45,36.5]
[1747566253499,266.0,171.55,171.46,18.08]
[1747566258234,266.0,171.55,171.47,18.32]
[1747566262922,266.0,171.55,171.47,19.8562]
[1747566263219,266.0,171.55,171.47,1.5362]
[1747566263419,266.0,171.55,171.48,36.64]
[1747566263818,266.0,171.55,171.47,44.32]
[1747566264617,266.0,171.55,171.47,18.32]
[1747566267440,18.64964886,171.54,171.47,18.32]
[1747566272341,266.0,171.55,171.47,44.32]
[1747566297966,266.0,171.55,171.47,26.0]
[1747566298159,266.0,171.55,171.48,18.32]
[1747566302869,266.0,171.55,171.49,18.32]
[1747566306375,18.64964886,171.54,171.49,18.32]
[1747566307978,1.5782,171.52,171.45,44.32]
[1747566309467,1.5782,171.52,171.45,18.32]
[1747566315464,18.64964886,171.51,171.45,18.32]
[1747566324683,18.64964886,171.51,171.4,24.8475]
[1747566324684,18.64964886,171.51,171.4,36.4]
[1747566324882,18.64964886,171.51,171.4,18.2]
[1747566330005,18.64964886,171.49,171.4,18.2]
[1747566330209,36.82964886,171.49,171.4,18.2]
[1747566358620,36.82964886,171.49,171.39,45.6404]
[1747566359337,18.64964886,171.49,171.39,45.6404]
[1747566360525,18.64964886,171.49,171.4,6.5105]
[1747566364253,18.64964886,171.5,171.4,6.5105]
[1747566365555,18.64964886,171.51,171.4,6.5105]
[1747566367757,109.55881762,171.52,171.41,1.5367]
[1747566368361,26.0,171.52,171.41,1.5367]